bitfinex-derivatives/quotes_BTCF0:USTF0_20250907
["timestamp","ask_amount","ask_price","bid_price","bid_amount"]
[1757283161086,0.0001,111240.0,111230.0,0.36095332]
[1757283161286,0.3801,111240.0,111230.0,0.36095332]
[1757283162697,0.0001,111240.0,111230.0,0.36095332]
[1757283163992,0.0001,111240.0,111230.0,0.35895332]
[1757283164290,0.0001,111240.0,111230.0,0.36795332]
[1757283164491,0.0001,111240.0,111230.0,0.45785162]
[1757283165294,0.0001,111240.0,111230.0,0.46385162]
[1757283166100,1.971e-05,111240.0,111230.0,0.46385162]
[1757283168792,1.971e-05,111240.0,111230.0,1.71293339]
[1757283169187,1.971e-05,111240.0,111230.0,1.55140103]
[1757283169393,1.971e-05,111240.0,111230.0,1.71313169]
[1757283170298,1.971e-05,111240.0,111230.0,1.55748517]
[1757283170594,1.971e-05,111240.0,111230.0,0.39490687]
[1757283170989,1.971e-05,111240.0,111230.0,1.21758687]
[1757283171697,1.971e-05,111240.0,111230.0,1.30748517]
[1757283173902,0.23487699,111260.0,111230.0,1.30748517]
[1757283174101,0.56487699,111260.0,111250.0,0.14876084]
[1757283175694,0.56487699,111260.0,111250.0,0.15325084]
[1757283180605,0.40928159,111260.0,111250.0,0.15325084]
[1757283180805,0.40928159,111260.0,111250.0,0.30884624]
[1757283181000,0.40928159,111260.0,111250.0,0.15325084]
[1757283181606,0.40928159,111260.0,111250.0,0.30884624]
[1757283181607,0.33,111260.0,111250.0,0.30884624]
[1757283181799,0.33,111260.0,111250.0,0.39872834]
[1757283182000,0.33,111260.0,111250.0,0.30884624]
[1757283182511,0.33914931,111260.0,111250.0,0.15325084]
[1757283192425,0.33914931,111260.0,111250.0,0.0401]
[1757283192628,0.33924931,111260.0,111250.0,0.0401]
[1757283192817,0.3301,111260.0,111250.0,0.0401]
[1757283193025,0.3301,111260.0,111250.0,0.1956954]
[1757283193826,0.3301,111260.0,111250.0,0.2855775]
[1757283194221,0.3301,111260.0,111250.0,0.5355775]
[1757283199028,0.3301,111260.0,111250.0,0.69730816]
[1757283200729,0.3301,111260.0,111250.0,0.5355775]
[1757283201530,0.3301,111260.0,111250.0,0.69730816]
[1757283202729,0.3301,111260.0,111250.0,0.60742606]
[1757283204930,0.3301,111260.0,111250.0,0.35742606]
[1757283205833,0.7356954,111260.0,111250.0,0.20183066]
[1757283206225,0.7356954,111260.0,111250.0,0.35742606]
[1757283206426,0.7356954,111260.0,111250.0,0.1956954]
[1757283206626,0.5801,111260.0,111250.0,0.0401]
[1757283210134,0.7356954,111260.0,111250.0,0.0401]
[1757283212236,1.5578554,111260.0,111250.0,0.0401]
[1757283214233,1.3078554,111260.0,111250.0,0.01837]
[1757283214434,1.3078554,111260.0,111250.0,0.03944]
[1757283232356,1.46347148,111260.0,111250.0,0.19504574]
[1757283241564,1.46347148,111260.0,111250.0,0.03944]
[1757283241767,1.46347148,111260.0,111250.0,0.19504574]
[1757283242161,1.30786574,111260.0,111250.0,0.19504574]
[1757283243066,1.46347148,111260.0,111250.0,0.19504574]
[1757283245771,1.46347148,111260.0,111250.0,0.03944]
[1757283245965,1.46347148,111260.0,111250.0,0.19504574]
[1757283247370,1.30786574,111260.0,111250.0,0.19504574]
[1757283247569,1.1517,111260.0,111250.0,0.60065148]
[1757283247773,1.1517,111260.0,111250.0,0.44504574]
[1757283247968,0.3301,111260.0,111250.0,0.44504574]
[1757283248169,0.3301,111260.0,111250.0,0.6966588]
[1757283248874,0.0901,111260.0,111250.0,0.6966588]
[1757283250173,0.0001,111260.0,111250.0,0.6966588]
[1757283251468,0.3801,111260.0,111250.0,0.6966588]
[1757283255470,0.3801,111260.0,111250.0,0.53492814]
[1757283257078,0.3801,111260.0,111250.0,0.6966588]
[1757283260077,0.3801,111260.0,111250.0,0.6067764]
[1757283267597,0.0001,111260.0,111250.0,0.6067764]
[1757283273198,0.3201,111260.0,111250.0,0.6067764]
[1757283276593,0.3201,111260.0,111250.0,0.6966588]
[1757283277600,0.0001,111260.0,111250.0,0.60226454]
[1757283278001,0.0001,111260.0,111250.0,0.4466588]
[1757283280611,0.0001,111260.0,111250.0,0.3567764]
[1757283286316,1.841e-05,111260.0,111250.0,0.3567764]
[1757283288014,1.841e-05,111260.0,111250.0,0.3597764]
[1757283288513,1.841e-05,111260.0,111250.0,0.3617764]
[1757283288702,0.37001841,111260.0,111250.0,0.20617066]
[1757283288908,0.77562415,111260.0,111250.0,0.3617764]
[1757283289107,0.62001841,111260.0,111250.0,0.3617764]
[1757283289311,0.62001841,111260.0,111250.0,0.3667764]
[1757283290416,0.62001841,111260.0,111250.0,0.20817066]
[1757283290602,0.62001841,111260.0,111250.0,0.3667764]
[1757283291316,0.62001841,111260.0,111250.0,0.3597764]
[1757283292319,0.62001841,111260.0,111250.0,0.35975176]
[1757283293819,0.37001841,111260.0,111250.0,0.35975176]
[1757283296221,1.841e-05,111260.0,111250.0,0.35975176]
[1757283298020,1.841e-05,111260.0,111250.0,0.36075176]
[1757283298220,1.841e-05,111260.0,111250.0,0.36175176]
[1757283298724,1.841e-05,111260.0,111250.0,0.36775176]
[1757283298918,1.841e-05,111260.0,111250.0,0.37275176]
[1757283300822,1.841e-05,111260.0,111250.0,0.46263426]
[1757283301517,0.34001841,111260.0,111250.0,0.46263426]
[1757283302026,0.34001841,111260.0,111250.0,0.37275176]
[1757283304826,0.34001841,111260.0,111250.0,0.21717066]
[1757283305027,0.34001841,111260.0,111250.0,0.37275176]
[1757283305328,0.34001841,111260.0,111250.0,0.36375176]
[1757283305529,0.34001841,111260.0,111250.0,0.35975176]
[1757283306528,0.34,111260.0,111250.0,0.35975176]
[1757283318740,0.34,111260.0,111250.0,0.20417066]
[1757283319040,0.3401,111260.0,111250.0,0.20417066]
[1757283319227,0.3401,111260.0,111250.0,0.35975176]
[1757283323548,0.5901,111260.0,111250.0,0.35975176]
[1757283334450,0.42011945,111260.0,111250.0,0.35975176]
[1757283334852,0.6101,111260.0,111250.0,0.35975176]
[1757283335251,0.3601,111260.0,111250.0,0.35975176]
[1757283338343,0.3601,111260.0,111250.0,0.20417066]
[1757283338654,0.3601,111260.0,111250.0,0.35975176]
[1757283341655,0.3601,111260.0,111250.0,0.20417066]
[1757283341954,0.3601,111260.0,111250.0,0.35975176]
[1757283352363,0.51568154,111260.0,111250.0,0.3597522]
[1757283352864,0.3601,111260.0,111250.0,0.3597522]
[1757283353065,0.51568154,111260.0,111250.0,0.3597522]
[1757283353458,0.3601,111260.0,111250.0,0.3597522]
[1757283359068,0.51568154,111260.0,111250.0,0.3597522]
[1757283362672,0.3601,111260.0,111250.0,0.3597522]
[1757283362871,0.51568154,111260.0,111250.0,0.3597522]
[1757283364967,0.51568154,111260.0,111250.0,0.19802154]
[1757283367867,0.67126308,111260.0,111250.0,0.1023056]
[1757283368072,0.92126308,111260.0,111250.0,0.1023056]
[1757283368375,0.92126308,111260.0,111250.0,0.02137]
[1757283368578,0.92126308,111260.0,111250.0,0.04295]
[1757283369272,0.92126308,111260.0,111250.0,0.03995]
[1757283370078,0.76568154,111260.0,111250.0,0.30877867]
[1757283370271,1.58588154,111260.0,111250.0,0.30877867]
[1757283370476,0.76568154,111260.0,111250.0,0.19553154]
[1757283370681,1.58592154,111260.0,111250.0,0.19553154]
[1757283371080,1.58592154,111260.0,111250.0,0.3087671]
[1757283371280,1.58588154,111260.0,111250.0,0.3087671]
[1757283374886,1.58588154,111260.0,111250.0,0.19553154]
[1757283375284,1.58588154,111260.0,111250.0,0.03995]
[1757283375480,1.58588154,111260.0,111250.0,0.19553154]
[1757283379987,1.58588154,111260.0,111250.0,0.03995]
[1757283380192,1.58588154,111260.0,111250.0,0.19553154]
[1757283382397,1.74146308,111260.0,111250.0,0.19553154]
[1757283382593,1.4303,111260.0,111250.0,0.19553154]
[1757283382796,1.74146308,111260.0,111250.0,0.19553154]
[1757283386305,1.89704462,111260.0,111250.0,0.00449]
[1757283386508,1.89704462,111260.0,111250.0,0.08535652]
[1757283387009,1.99704462,111260.0,111250.0,0.00449]
[1757283390104,1.99684462,111260.0,111250.0,0.00449]
[1757283393211,1.89684462,111260.0,111250.0,0.00449]
[1757283395613,1.89684462,111260.0,111240.0,0.00023484]
[1757283395913,0.31116308,111250.0,111240.0,0.00023484]
[1757283396112,0.69126308,111250.0,111240.0,0.00013484]
[1757283399108,0.69226308,111250.0,111240.0,0.00013484]
[1757283399309,0.84784462,111250.0,111240.0,0.00013484]
[1757283399513,0.69226308,111250.0,111240.0,0.00013484]
[1757283399712,0.69426308,111250.0,111240.0,0.00013484]
[1757283402915,1.51418308,111250.0,111240.0,0.00013484]
[1757283403717,0.69426308,111250.0,111240.0,0.00013484]
[1757283403912,1.51418308,111250.0,111240.0,0.00013484]
[1757283405911,0.69426308,111250.0,111240.0,0.00013484]
[1757283406103,1.51418308,111250.0,111240.0,0.00013484]
[1757283412319,1.51441096,111250.0,111240.0,0.00013484]
[1757283413222,0.3831,111250.0,111240.0,0.00013484]
[1757283413420,1.35859548,111250.0,111240.0,0.00013484]
[1757283416024,1.51429096,111250.0,111240.0,0.00013484]
[1757283416320,1.51429096,111250.0,111240.0,0.08100136]
[1757283422431,1.61429096,111250.0,111240.0,0.00013484]
[1757283428727,1.86419096,111250.0,111230.0,0.06041653]
[1757283428928,0.31139096,111240.0,111220.0,0.11321313]
[1757283429129,0.97533548,111230.0,111210.0,0.01359]
[1757283429329,0.15569548,111220.0,111210.0,0.01359]
[1757283429529,0.15569548,111220.0,111210.0,0.0361]
[1757283430038,0.15569548,111220.0,111210.0,0.14931313]
[1757283430229,0.15569548,111220.0,111210.0,0.0361]
[1757283431139,0.81964,111230.0,111210.0,0.0361]
[1757283431339,0.15569548,111220.0,111210.0,0.0361]
[1757283431642,0.15569548,111220.0,111210.0,0.0401]
[1757283431828,0.15569548,111220.0,111210.0,0.0421]
[1757283433337,0.15569548,111220.0,111210.0,0.0411]
[1757283433837,0.15569548,111220.0,111210.0,0.0381]
[1757283434041,0.15569548,111220.0,111210.0,0.0421]
[1757283434736,0.97533548,111220.0,111210.0,0.0421]
[1757283435140,0.97533548,111220.0,111210.0,0.15531313]
[1757283438241,0.15569548,111220.0,111210.0,0.15531313]
[1757283438442,0.97533548,111220.0,111210.0,0.15531313]
[1757283439143,1.29533548,111220.0,111210.0,0.15531313]
[1757283444442,0.47569548,111220.0,111210.0,0.15531313]
[1757283444647,1.29533548,111220.0,111210.0,0.15531313]
[1757283449557,1.13964,111220.0,111210.0,0.15531313]
[1757283449757,1.29533548,111220.0,111210.0,0.15531313]
[1757283458360,1.29533548,111220.0,111210.0,0.0421]
[1757283459462,0.32,111220.0,111210.0,0.0421]
[1757283459764,1.21889548,111220.0,111210.0,0.0421]
[1757283465864,0.32,111220.0,111210.0,0.44779548]
[1757283466072,0.00013484,111230.0,111220.0,0.03502]
[1757283466262,1.17957484,111230.0,111220.0,0.03502]
[1757283466468,1.17957484,111230.0,111220.0,0.14836248]
[1757283466663,1.33527032,111230.0,111220.0,0.14836248]
[1757283468567,1.18257484,111230.0,111220.0,0.14836248]
[1757283468968,1.18557484,111230.0,111220.0,0.14836248]
[1757283469169,1.18257484,111230.0,111220.0,0.15136248]
[1757283469370,0.36313484,111230.0,111220.0,0.38798033]
[1757283469667,1.18253484,111230.0,111220.0,0.44071548]
[1757283469972,1.17953484,111230.0,111220.0,0.44671548]
[1757283472075,1.17953484,111230.0,111220.0,0.58060612]
[1757283472467,1.17953484,111230.0,111220.0,0.46741474]
[1757283472666,0.81953484,111230.0,111220.0,0.46741474]
[1757283472868,1.13953484,111230.0,111220.0,0.46741474]
[1757283473073,1.13949484,111230.0,111220.0,0.46741474]
[1757283474375,1.13949484,111230.0,111220.0,0.46737711]
[1757283476275,1.29515269,111230.0,111220.0,0.46737711]
[1757283479278,1.13949484,111230.0,111220.0,0.62303496]
[1757283480573,0.32013484,111230.0,111220.0,0.62303496]
[1757283487187,0.32013484,111230.0,111220.0,0.71294096]
[1757283488287,0.32013484,111230.0,111220.0,0.62303496]
[1757283490895,0.32013484,111230.0,111220.0,0.78476562]
[1757283491590,0.32013484,111230.0,111220.0,0.87467162]
[1757283493489,0.32013484,111230.0,111220.0,0.78476562]
[1757283494880,0.32013484,111230.0,111220.0,0.62303496]
[1757283495080,0.47579269,111230.0,111220.0,0.46737711]
[1757283498284,0.47579269,111230.0,111220.0,0.62910777]
[1757283499496,0.47579269,111230.0,111220.0,0.78476562]
[1757283500100,0.32013484,111230.0,111220.0,0.78476562]
[1757283500903,0.47579269,111230.0,111220.0,0.78476562]
[1757283501901,0.47579269,111230.0,111220.0,0.47344992]
[1757283502102,0.47579269,111230.0,111220.0,0.78476562]
[1757283503705,0.32013484,111230.0,111220.0,0.78476562]
[1757283507202,0.32013484,111230.0,111220.0,1.60360562]
[1757283507502,0.47579269,111230.0,111220.0,1.60360562]
[1757283511211,0.32013484,111230.0,111220.0,1.60360562]
[1757283511410,0.47579269,111230.0,111220.0,1.60360562]
[1757283512412,0.32013484,111230.0,111220.0,1.60360562]
[1757283515307,0.33013484,111230.0,111220.0,1.60360562]
[1757283515502,0.33013484,111230.0,111220.0,1.44794777]
[1757283515707,0.33013484,111230.0,111220.0,1.60360562]
[1757283516213,0.00013484,111230.0,111220.0,1.60360562]
[1757283516714,0.32013484,111230.0,111220.0,1.60360562]
[1757283519310,0.32013484,111230.0,111220.0,1.35360562]
[1757283520418,0.00013484,111230.0,111220.0,1.35360562]
[1757283520818,0.02013484,111230.0,111220.0,1.35360562]
[1757283521722,0.31013484,111230.0,111220.0,1.35360562]
[1757283527820,0.31013484,111230.0,111220.0,1.04228992]
[1757283528023,0.31013484,111230.0,111220.0,1.35360562]
[1757283528224,0.00013484,111230.0,111220.0,1.35360562]
[1757283528923,0.00013484,111230.0,111220.0,1.19187496]
[1757283530222,0.00013484,111230.0,111220.0,1.53178096]
[1757283530416,0.0001,111240.0,111230.0,0.0349]
[1757283530619,0.0001,111240.0,111230.0,0.3462157]
[1757283531326,0.0001,111240.0,111230.0,0.4361136]
[1757283531821,0.07965535,111270.0,111260.0,0.0127]
[1757283532027,0.52565785,111270.0,111260.0,0.11578378]
[1757283532218,0.52565785,111270.0,111260.0,0.0349]
[1757283532415,0.52565785,111270.0,111260.0,0.1481373]
[1757283532820,0.37,111270.0,111260.0,0.2289666]
[1757283533021,0.52565785,111270.0,111260.0,0.2289666]
[1757283533225,0.52865785,111270.0,111260.0,0.1157293]
[1757283533727,0.60054784,111270.0,111260.0,0.1157293]
[1757283534229,0.60254784,111270.0,111260.0,0.27138715]
[1757283534927,0.61174406,111270.0,111260.0,0.27138715]
[1757283536030,0.45608621,111270.0,111260.0,0.27138715]
[1757283536331,0.45608621,111270.0,111260.0,0.1157293]
[1757283538624,0.45608621,111270.0,111260.0,0.0349]
[1757283538827,0.45608621,111270.0,111260.0,0.1481373]
[1757283539026,0.61164374,111270.0,111260.0,0.1481373]
[1757283540331,0.45608621,111270.0,111260.0,0.1481373]
[1757283542437,0.61164374,111270.0,111260.0,0.1481373]
[1757283543336,0.45608621,111270.0,111260.0,0.0349]
[1757283543634,0.61164374,111270.0,111260.0,0.0349]
[1757283543929,0.45608621,111270.0,111260.0,0.0349]
[1757283544136,0.61164374,111270.0,111260.0,0.0349]
[1757283544837,0.61164374,111270.0,111260.0,0.11553649]
[1757283547134,0.45608621,111270.0,111260.0,0.11553649]
[1757283549131,0.375,111270.0,111260.0,0.27109402]
[1757283549427,0.005,111270.0,111260.0,0.30369483]
[1757283550434,0.005,111270.0,111260.0,0.39356853]
[1757283550634,0.0051,111270.0,111260.0,0.39356853]
[1757283551136,0.0001,111290.0,111280.0,0.03393]
[1757283551438,0.00473,111300.0,111290.0,0.03393]
[1757283551633,0.37463,111300.0,111290.0,0.03393]
[1757283552233,0.53018753,111300.0,111290.0,0.03393]
[1757283553339,0.53930581,111300.0,111290.0,0.03393]
[1757283553536,0.38374828,111300.0,111290.0,0.03393]
[1757283559250,0.38374828,111300.0,111290.0,0.18948753]
[1757283562749,0.38374828,111300.0,111290.0,0.03393]
[1757283563243,0.53930581,111300.0,111290.0,0.03393]
[1757283563850,0.38374828,111300.0,111290.0,0.03393]
[1757283572653,0.38374828,111300.0,111290.0,0.27008714]
[1757283572848,0.38384828,111300.0,111290.0,0.27008714]
[1757283574052,0.38384828,111300.0,111290.0,0.11452961]
[1757283574460,0.38384828,111300.0,111290.0,0.03393]
[1757283575555,0.38384828,111300.0,111290.0,0.18948753]
[1757283577753,0.38384828,111300.0,111290.0,0.27008714]
[1757283577954,0.38384828,111300.0,111290.0,0.18948753]
[1757283578155,0.38384828,111300.0,111290.0,0.27008714]
[1757283583356,0.38384828,111300.0,111290.0,0.18948753]
[1757283584658,0.38384828,111300.0,111290.0,0.27035043]
[1757283587157,0.38384828,111300.0,111290.0,0.1147929]
[1757283587358,0.38384828,111300.0,111290.0,0.18948753]
[1757283587558,0.38384828,111300.0,111290.0,0.27034945]
[1757283588258,0.38384828,111300.0,111290.0,0.18948753]
[1757283589060,0.53940581,111300.0,111290.0,0.03393]
[1757283589962,0.38384828,111300.0,111290.0,0.03393]
[1757283590161,0.53940581,111300.0,111290.0,0.03393]
[1757283590962,0.53940581,111300.0,111290.0,0.1471673]
[1757283591162,0.38384828,111300.0,111290.0,0.1471673]
[1757283591363,0.53940581,111300.0,111290.0,0.1471673]
[1757283591562,0.38384828,111300.0,111290.0,0.1471673]
[1757283592062,0.38384828,111300.0,111290.0,0.03393]
[1757283592465,0.3701,111300.0,111290.0,0.21082055]
[1757283592661,0.37473,111300.0,111290.0,0.21082055]
[1757283593264,0.3701,111300.0,111290.0,0.21082055]
[1757283593963,0.37473,111300.0,111290.0,0.21082055]
[1757283594865,0.37473,111300.0,111290.0,0.05526302]
[1757283595066,0.37473,111300.0,111290.0,0.37255121]
[1757283595566,0.37473,111300.0,111290.0,0.21699368]
[1757283596665,0.37473,111300.0,111290.0,0.05526302]
[1757283597468,0.37473,111300.0,111290.0,0.21082055]
[1757283598371,0.53019636,111300.0,111290.0,0.21072938]
[1757283599868,0.53019636,111300.0,111290.0,0.05526302]
[1757283600168,0.53019636,111300.0,111290.0,0.21072938]
[1757283600771,0.37473,111300.0,111290.0,0.21072938]
[1757283600973,0.53019636,111300.0,111290.0,0.21072938]
[1757283601168,0.37473,111300.0,111290.0,0.21072938]
[1757283601368,0.3701,111300.0,111290.0,0.21072938]
[1757283601670,0.37473,111300.0,111290.0,0.05526302]
[1757283601871,0.37473,111300.0,111290.0,0.21072938]
[1757283602068,0.37473,111300.0,111290.0,0.05526302]
[1757283602374,0.53019636,111300.0,111290.0,0.21072938]
[1757283602569,0.37473,111300.0,111290.0,0.21072938]
[1757283602974,0.53019636,111300.0,111290.0,0.21072938]
[1757283604675,0.37473,111300.0,111290.0,0.21072938]
[1757283604867,0.53019636,111300.0,111290.0,0.21072938]
[1757283605263,0.37473,111300.0,111290.0,0.21072938]
[1757283605469,0.53019636,111300.0,111290.0,0.21072938]
[1757283605972,0.53019636,111300.0,111290.0,0.05526302]
[1757283606173,0.53019636,111300.0,111290.0,0.21072938]
[1757283606878,0.53019636,111300.0,111290.0,0.05526302]
[1757283607078,0.53019636,111300.0,111290.0,0.21072938]
[1757283607578,0.68566272,111300.0,111290.0,0.05526302]
[1757283608279,0.68566272,111300.0,111290.0,0.21072938]
[1757283609080,0.37473,111300.0,111290.0,0.21072938]
[1757283609578,0.53019636,111300.0,111290.0,0.21072938]
[1757283610779,0.53019636,111300.0,111290.0,0.05526302]
[1757283610979,0.53019636,111300.0,111290.0,0.21072938]
[1757283611886,0.37473,111300.0,111290.0,0.21072938]
[1757283612178,0.53019636,111300.0,111290.0,0.37246004]
[1757283612676,0.37473,111300.0,111290.0,0.37246004]
[1757283612880,0.53019636,111300.0,111290.0,0.37246004]
[1757283613782,0.37473,111300.0,111290.0,0.21699368]
[1757283613984,0.53019636,111300.0,111290.0,0.37246004]
[1757283616183,0.37473,111300.0,111290.0,0.37246004]
[1757283616384,0.53019636,111300.0,111290.0,0.37246004]
[1757283617485,0.53019636,111300.0,111290.0,0.21699368]
[1757283617685,0.53019636,111300.0,111290.0,0.37246004]
[1757283617985,0.37473,111300.0,111290.0,0.37246004]
[1757283618185,0.53019636,111300.0,111290.0,0.37246004]
[1757283620190,0.53019636,111300.0,111290.0,0.21699368]
[1757283620388,0.53019636,111300.0,111290.0,0.37246004]
[1757283620683,0.53019636,111300.0,111290.0,0.21699368]
[1757283620889,0.53019636,111300.0,111290.0,0.37246004]
[1757283621085,0.53019636,111300.0,111290.0,0.21699368]
[1757283621292,0.53019636,111300.0,111290.0,0.37246004]
[1757283621590,0.52556636,111300.0,111290.0,0.37246004]
[1757283621889,0.53019636,111300.0,111290.0,0.37246004]
[1757283622792,0.37473,111300.0,111290.0,0.37246004]
[1757283622986,0.53019636,111300.0,111290.0,0.37246004]
[1757283626190,0.53019636,111300.0,111290.0,0.21699368]
[1757283626386,0.37473,111300.0,111290.0,0.37246004]
[1757283626585,0.53019636,111300.0,111290.0,0.21699368]
[1757283626989,0.53019636,111300.0,111290.0,0.37246004]
[1757283627588,0.37473,111300.0,111290.0,0.37246004]
[1757283627790,0.53019636,111300.0,111290.0,0.37246004]
[1757283628192,0.53019636,111300.0,111290.0,0.21699368]
[1757283628491,0.53019636,111300.0,111290.0,0.37246004]
[1757283635500,0.37473,111300.0,111290.0,0.37246004]
[1757283636290,0.37473,111300.0,111290.0,0.21699368]
[1757283636596,0.37473,111300.0,111290.0,0.37246004]
[1757283637193,0.37473,111300.0,111290.0,0.21072938]
[1757283637393,0.37473,111300.0,111290.0,0.05526302]
[1757283637594,0.37473,111300.0,111290.0,0.21072938]
[1757283637898,0.37473,111300.0,111290.0,0.37246004]
[1757283638197,0.53019636,111300.0,111290.0,0.37246004]
[1757283639200,0.37473,111300.0,111290.0,0.37246004]
[1757283639600,0.37473,111300.0,111290.0,0.05526302]
[1757283639804,0.37473,111300.0,111290.0,0.21072938]
[1757283641193,0.37473,111300.0,111290.0,0.05526302]
[1757283641403,0.37473,111300.0,111290.0,0.21072938]
[1757283642514,0.3701,111300.0,111290.0,0.21072938]
[1757283643712,0.37473,111300.0,111290.0,0.21072938]
[1757283651824,0.3701,111300.0,111290.0,0.45604584]
[1757283652020,0.0001,111300.0,111290.0,0.45604584]
[1757283653118,0.0001,111300.0,111290.0,0.30057948]
[1757283654021,0.00473,111300.0,111290.0,0.21072938]
[1757283654219,0.0001,111300.0,111290.0,0.21072938]
[1757283654413,0.00473,111300.0,111290.0,0.21072938]
[1757283657021,0.0001,111300.0,111290.0,0.21072938]
[1757283657228,0.00473,111300.0,111290.0,0.21072938]
[1757283659727,0.0001,111300.0,111290.0,0.37246004]
[1757283660425,0.0001,111300.0,111290.0,0.37243806]
[1757283660823,0.00473,111300.0,111290.0,0.37243806]
[1757283661219,0.0001,111300.0,111290.0,0.37243806]
[1757283663130,0.0001,111300.0,111290.0,0.21699368]
[1757283663429,0.00473,111300.0,111290.0,0.37243806]
[1757283667032,0.0001,111300.0,111290.0,0.37243806]
[1757283669634,0.00473,111300.0,111290.0,0.37243806]
[1757283669934,0.0001,111300.0,111290.0,0.37243806]
[1757283670937,0.00473,111300.0,111290.0,0.37243806]
[1757283671234,0.0001,111300.0,111290.0,0.37243806]
[1757283671434,0.3501,111300.0,111290.0,0.37243806]
[1757283673237,0.35473,111300.0,111290.0,0.37243806]
[1757283673833,0.0001,111300.0,111290.0,0.37243806]
[1757283674836,0.0001,111300.0,111290.0,0.21699368]
[1757283675036,0.0001,111300.0,111290.0,0.37243806]
[1757283676637,0.00473,111300.0,111290.0,0.37243806]
[1757283678638,0.00473,111300.0,111290.0,1.19939806]
[1757283679141,0.33473,111300.0,111290.0,1.19939806]
[1757283679842,0.00473,111300.0,111290.0,1.19939806]
[1757283680840,0.36473,111300.0,111290.0,1.19939806]
[1757283681041,0.36473,111300.0,111290.0,1.19907806]
[1757283681737,0.34473,111300.0,111290.0,1.19907806]
[1757283682335,0.34473,111300.0,111290.0,0.21699368]
[1757283682541,0.34473,111300.0,111290.0,1.19903806]
[1757283684240,0.34473,111300.0,111290.0,1.04359368]
[1757283684541,0.34473,111300.0,111290.0,1.19903806]
[1757283684734,0.17481754,111300.0,111290.0,1.19903806]
[1757283685038,0.36,111300.0,111290.0,1.19903806]
[1757283690545,0.36,111300.0,111290.0,1.04359368]
[1757283690749,0.36,111300.0,111290.0,1.04263368]
[1757283691050,0.36,111300.0,111290.0,1.19795806]
[1757283692248,0.36,111300.0,111290.0,1.04251368]
[1757283692447,0.36,111300.0,111290.0,1.19795806]
[1757283693351,0.36,111300.0,111290.0,1.04251368]
[1757283693543,0.36,111300.0,111290.0,1.19795806]
[1757283694248,0.36,111300.0,111290.0,1.04251368]
[1757283694547,0.36,111300.0,111290.0,1.19795806]
[1757283698249,0.36,111300.0,111290.0,1.04251368]
[1757283698450,0.36,111300.0,111290.0,1.19795806]
[1757283700448,0.00895117,111310.0,111300.0,0.01317]
[1757283700748,0.38885117,111310.0,111300.0,0.03594]
[1757283701655,0.38885117,111310.0,111300.0,0.19138438]
[1757283707652,0.38885117,111310.0,111300.0,0.03594]
[1757283707949,0.38895117,111310.0,111300.0,0.03594]
[1757283709056,0.38895117,111310.0,111300.0,0.3045534]
[1757283713260,0.38895117,111310.0,111300.0,0.14910902]
[1757283713459,0.38895117,111310.0,111300.0,0.3045534]
[1757283714061,0.38895117,111310.0,111300.0,0.14910902]
[1757283717463,0.54439555,111310.0,111300.0,0.14910902]
[1757283720367,0.54440642,111310.0,111300.0,0.30456427]
[1757283720568,0.54440642,111310.0,111300.0,0.19139525]
[1757283720768,0.54440642,111310.0,111300.0,0.30455973]
[1757283723572,0.54440642,111310.0,111300.0,0.14910448]
[1757283723971,0.54440642,111310.0,111300.0,0.30455973]
[1757283730776,0.54440642,111310.0,111300.0,0.19139525]
[1757283740980,0.38895117,111310.0,111300.0,0.19139525]
[1757283741181,0.54440642,111310.0,111300.0,0.19139525]
[1757283743472,0.54440642,111310.0,111300.0,0.03594]
[1757283743673,0.54440642,111310.0,111300.0,0.01317]
[1757283743878,0.54440642,111310.0,111300.0,0.03457]
[1757283744784,0.54440642,111310.0,111300.0,0.19002525]
[1757283746388,0.38895117,111310.0,111300.0,0.19002525]
[1757283746593,0.54440642,111310.0,111300.0,0.19002525]
[1757283750193,0.38895117,111310.0,111300.0,0.19002525]
[1757283750389,0.54440642,111310.0,111300.0,0.19002525]
[1757283759396,0.38895117,111310.0,111300.0,0.19002525]
[1757283759596,0.38895117,111310.0,111300.0,0.3454805]
[1757283759597,0.3801,111310.0,111300.0,0.3454805]
[1757283760393,0.3801,111310.0,111300.0,0.50721116]
[1757283765196,0.3801,111310.0,111300.0,0.3454805]
[1757283765395,0.3801,111310.0,111300.0,0.03457]
[1757283765599,0.3801,111310.0,111300.0,1.1656805]
[1757283765794,0.3801,111310.0,111300.0,0.85477]
[1757283765994,0.3801,111310.0,111300.0,1.1656805]
[1757283773303,0.3801,111310.0,111300.0,0.85477]
[1757283773501,0.3801,111310.0,111300.0,1.1656805]
[1757283780309,0.3801,111310.0,111300.0,1.0101941]
[1757283786613,0.3801,111310.0,111300.0,0.1899941]
[1757283788713,0.3801,111310.0,111300.0,0.35172476]
[1757283801415,0.1601,111310.0,111300.0,0.35172476]
[1757283808218,0.0001,111310.0,111300.0,0.35172476]
[1757283822629,0.3201,111310.0,111300.0,0.35172476]
[1757283822932,0.0001,111310.0,111300.0,0.35172476]
[1757283823133,0.3401,111310.0,111300.0,0.35172476]
[1757283823730,0.0001,111310.0,111300.0,0.35172476]
[1757283823938,0.0201,111310.0,111300.0,0.35172476]
[1757283824127,0.0001,111310.0,111300.0,0.35172476]
[1757283824734,0.0001,111310.0,111300.0,0.19630066]
[1757283824930,0.0001,111310.0,111300.0,0.35172476]
[1757283825432,0.3801,111310.0,111300.0,0.19630066]
[1757283825831,0.3801,111310.0,111300.0,1.01602066]
[1757283826033,0.3801,111310.0,111300.0,1.17144476]
[1757283826436,0.3801,111310.0,111300.0,0.35172476]
[1757283826625,0.3801,111310.0,111300.0,0.19630066]
[1757283826828,0.3801,111310.0,111300.0,0.35172476]
[1757283829443,0.3801,111310.0,111300.0,0.19630066]
[1757283829645,0.3801,111310.0,111300.0,0.35172476]
[1757283835541,0.3801,111310.0,111300.0,0.19630066]
[1757283835542,0.5355241,111310.0,111300.0,0.19630066]
[1757283836547,0.3801,111310.0,111300.0,0.19630066]
[1757283842356,0.53554708,111310.0,111300.0,0.35174774]
[1757283844655,0.3801,111310.0,111300.0,0.35174774]
[1757283844955,0.53554708,111310.0,111300.0,0.35174774]
[1757283846056,0.53554708,111310.0,111300.0,0.19001708]
[1757283847057,0.3801,111310.0,111300.0,0.19001708]
[1757283847258,0.53554708,111310.0,111300.0,0.19001708]
[1757283848859,0.3801,111310.0,111300.0,0.19001708]
[1757283849161,0.53554708,111310.0,111300.0,0.19001708]
[1757283849761,0.53554708,111310.0,111300.0,0.03457]
[1757283849960,0.53554708,111310.0,111300.0,0.19001708]
[1757283855060,0.3801,111310.0,111300.0,0.19001708]
[1757283855363,0.53554708,111310.0,111300.0,0.34546416]
[1757283855563,0.53554708,111310.0,111300.0,0.03457]
[1757283855754,0.53554708,111310.0,111300.0,0.34546416]